bitfinex-derivatives/quotes_ETHF0:USTF0_20240924
["timestamp","ask_amount","ask_price","bid_price","bid_amount"]
[1727136940862,4.082,2650.3,2649.6,2.65]
[1727136941167,3.7242022,2650.9,2649.6,2.65]
[1727136941168,0.759,2651.1,2650.2,2.65]
[1727136941359,0.94287,2651.6,2651.0,2.65]
[1727136941673,0.94287,2651.6,2650.8,2.65]
[1727136941674,0.37724,2650.9,2650.8,2.65]
[1727136941970,0.94301,2651.2,2650.6,2.65]
[1727136942158,0.94301,2651.2,2651.1,2.65]
[1727136942354,7.32021,2651.2,2651.1,2.65]
[1727136942567,0.37729,2650.6,2650.5,3.2078]
[1727136942760,0.94305,2651.1,2650.5,5.8578]
[1727136942761,4.15085,2651.1,2650.5,5.8578]
[1727136943063,4.52807,2651.1,2651.0,2.65]
[1727136943270,10.52807,2651.1,2651.0,2.65]
[1727136943467,13.92285,2651.1,2650.5,3.2078]
[1727136943657,13.92285,2651.1,2650.4,3.2]
[1727136943658,1.44478,2651.0,2650.9,2.65]
[1727136943970,1.44478,2651.0,2650.5,2.65]
[1727136943971,0.94315,2650.8,2650.5,2.65]
[1727136944474,0.37729,2650.6,2650.5,2.65]
[1727136944965,0.37729,2650.6,2650.5,1.8659]
[1727136944966,10.15009,2650.6,2650.5,1.8659]
[1727136945666,0.37734,2650.2,2650.1,2.65]
[1727136946466,0.5217,2650.5,2650.1,2.65]
[1727136946669,3.7095,2651.0,2650.4,2.65]
[1727136946879,0.37729,2650.6,2650.5,3.2078]
[1727136948068,0.37729,2650.6,2650.5,5.8578]
[1727136949176,4.15009,2650.6,2650.5,5.8578]
[1727136951474,4.15009,2650.6,2650.5,2.65]
[1727136952181,0.37733,2650.3,2650.2,3.2078]
[1727136952375,0.37733,2650.3,2650.2,2.65]
[1727136952678,4.15093,2650.3,2650.2,2.65]
[1727136953874,5.09426,2650.3,2650.2,2.65]
[1727136954075,11.09426,2650.3,2650.2,2.65]
[1727136954674,4.15093,2650.3,2650.2,2.65]
[1727136954874,0.37733,2650.3,2650.2,2.65]
[1727136956077,4.15093,2650.3,2650.2,2.65]
[1727136957280,0.37732,2650.4,2650.2,2.65]
[1727136957484,0.37733,2650.3,2650.2,2.65]
[1727136957781,0.37735,2650.2,2649.9,3.2078]
[1727136960176,0.94327,2650.5,2650.1,2.65]
[1727136960380,0.37734,2650.2,2650.1,2.65]
[1727136961673,0.37728,2650.7,2650.1,6.4236]
[1727136961871,3.2078,2650.9,2650.5,5.8578]
[1727136961872,0.37727,2650.8,2650.5,5.8578]
[1727136962073,0.37726,2650.8,2650.7,2.65]
[1727136962273,3.58505,2650.9,2650.7,2.65]
[1727136962485,0.37726,2650.8,2650.7,2.65]
[1727136962775,4.082,2651.4,2650.9,0.37723]
[1727136962981,0.37717,2651.4,2651.3,2.65]
[1727136963382,4.14917,2651.4,2651.3,2.65]
[1727136963769,7.92274,2651.4,2651.1,2.65]
[1727136963973,0.37724,2650.9,2650.8,2.65]
[1727136964168,3.2078,2651.1,2650.6,2.65]
[1727136964375,1.32046,2650.7,2650.6,2.65]
[1727136964575,0.3773,2650.5,2650.4,3.6869]
[1727136964879,0.3773,2650.5,2650.4,3.2078]
[1727136965080,5.09336,2650.5,2650.4,3.2078]
[1727136965481,1.32062,2650.4,2650.3,2.65]
[1727136965683,1.79812,2650.4,2650.3,2.65]
[1727136967880,0.94338,2650.2,2650.1,2.65]
[1727136968182,0.37739,2649.9,2649.8,2.65]
[1727136968382,3.6853,2650.4,2649.6,0.5171]
[1727136968383,0.37742,2649.7,2649.6,3.1671]
[1727136968579,0.37742,2649.7,2649.6,2.65]
[1727136968783,4.15182,2649.7,2649.6,2.65]
[1727136970085,0.37744,2649.5,2649.4,3.2078]
[1727136971589,0.37749,2649.2,2649.1,3.7213]
[1727136971783,1.32121,2649.2,2649.1,3.7213]
[1727136971982,0.37749,2649.2,2649.1,3.7213]
[1727136972494,0.37749,2649.2,2649.1,3.2078]
[1727136972495,4.15189,2649.2,2649.1,3.2078]
[1727136972687,5.09561,2649.2,2649.1,3.2078]
[1727136972987,0.37749,2649.2,2649.1,3.2078]
[1727136973187,0.5109,2649.6,2649.1,3.2078]
[1727136973392,0.37749,2649.2,2649.1,3.2078]
[1727136974283,0.5109,2649.6,2649.1,3.2078]
[1727136974585,0.37747,2649.3,2649.2,0.4995]
[1727136976794,0.94355,2649.7,2649.2,3.7595]
[1727136976795,0.37747,2649.4,2649.2,3.7595]
[1727136977394,0.37747,2649.3,2649.2,3.7595]
[1727136978395,0.37746,2649.4,2649.2,3.7595]
[1727136978592,0.94355,2649.7,2649.2,3.7595]
[1727136978796,0.37747,2649.3,2649.2,3.7595]
[1727136981995,3.7744,2649.3,2648.8,3.704]
[1727136982195,0.37753,2648.9,2648.8,3.704]
[1727136983895,5.09656,2648.9,2648.8,3.2078]
[1727136984799,4.15273,2648.9,2648.8,3.2078]
[1727136985100,0.37751,2649.1,2648.8,7.36054]
[1727136985297,0.37751,2649.1,2649.0,3.26]
[1727136985599,1.41783,2649.5,2648.8,3.2078]
[1727136985600,0.37753,2648.9,2648.8,3.2078]
[1727136985903,0.94369,2649.3,2648.8,3.2078]
[1727136986103,0.37753,2648.9,2648.8,3.2078]
[1727136988101,0.94376,2649.2,2648.8,3.2078]
[1727136988102,0.37752,2649.0,2648.8,3.2078]
[1727136988295,0.37752,2649.0,2648.9,3.26]
[1727136989503,0.37753,2648.9,2648.8,3.2078]
[1727136992303,0.37755,2648.8,2648.6,0.5052]
[1727136992501,2.88930188,2649.4,2648.7,2.65]
[1727136992709,1.32114,2649.4,2649.3,2.65]
[1727136993098,0.37746,2649.4,2649.3,2.65]
[1727136997099,0.37745,2649.5,2649.3,2.65]
[1727136997407,0.3774,2649.9,2649.5,0.37744]
[1727136997709,0.3774,2649.9,2649.7,3.2078]
[1727136998100,0.3774,2649.9,2649.7,3.6896]
[1727136999109,1.47728995,2650.2,2649.8,0.37739]
[1727136999301,0.37737,2650.1,2650.0,2.65]
[1727136999706,1.85463995,2650.2,2650.0,2.65]
[1727137000000,0.37736,2650.1,2650.0,2.65]
[1727137001309,1.85463995,2650.2,2650.0,5.8578]
[1727137001708,0.37735,2650.2,2650.0,5.8578]
[1727137002009,1.47728995,2650.3,2650.0,5.8578]
[1727137002010,0.37736,2650.1,2650.0,5.8578]
[1727137003209,1.47728995,2650.3,2650.0,6.23516]
[1727137003505,1.98678995,2650.4,2650.0,6.23516]
[1727137003714,0.37734,2650.3,2650.1,0.86385]
[1727137004098,0.37734,2650.3,2650.1,0.4865]
[1727137004309,0.37734,2650.2,2650.1,0.4865]
[1727137004909,0.37734,2650.2,2650.1,3.1365]
[1727137007002,0.37734,2650.2,2650.1,2.65]
[1727137007207,0.37736,2650.1,2650.0,3.2078]
[1727137007806,1.32076,2650.1,2650.0,3.2078]
[1727137008603,5.09436,2650.1,2650.0,3.2078]
[1727137008807,12.57164995,2650.1,2650.0,3.2078]
[1727137009208,0.94351,2649.8,2649.5,2.65]
[1727137009409,0.37744,2649.5,2649.4,3.2078]
[1727137009813,1.85653756,2649.5,2649.4,3.2078]
[1727137012216,0.37744,2649.5,2649.4,3.2078]
[1727137012408,0.37746,2649.4,2649.3,2.65]
[1727137012607,1.85790975,2649.4,2649.3,2.65]
[1727137012806,0.37749,2649.2,2649.1,9.0578]
[1727137013002,0.37749,2649.2,2648.9,0.496]
[1727137013003,0.37751,2649.0,2648.9,3.146]
[1727137013512,0.4962,2649.1,2648.9,3.146]
[1727137013817,0.37751,2649.0,2648.9,3.146]
[1727137018510,0.94383,2648.9,2648.7,3.2]
[1727137018708,0.94383,2648.9,2648.6,3.1688]
[1727137018709,0.37756,2648.8,2648.6,3.1688]
[1727137019310,1.48044975,2648.9,2648.6,3.1688]
[1727137019311,0.37756,2648.7,2648.6,3.1688]
[1727137020515,0.37755,2648.8,2648.6,3.1688]
[1727137021219,1.85798975,2648.9,2648.6,3.1688]
[1727137021426,1.85796975,2649.0,2648.8,3.2078]
[1727137021621,1.85796975,2649.0,2648.9,2.65]
[1727137022720,1.48044975,2649.0,2648.9,2.65]
[1727137022922,1.48044975,2649.2,2649.0,0.37751]
[1727137023224,0.37747,2649.4,2649.1,4.57899]
[1727137023518,1.85789975,2649.5,2649.3,2.65]
[1727137023726,1.85787975,2649.6,2649.4,3.2078]
[1727137023913,0.37743,2649.6,2649.5,2.65]
[1727137024324,1.85787975,2649.6,2649.5,2.65]
[1727137024823,0.37743,2649.6,2649.5,2.65]
[1727137025119,1.85787975,2649.6,2649.5,2.65]
[1727137026016,5.93986975,2649.7,2649.5,2.65]
[1727137026528,0.37743,2649.6,2649.5,2.65]
[1727137027013,1.85787975,2649.6,2649.5,2.65]
[1727137027425,0.37743,2649.6,2649.5,2.65]
[1727137028225,1.85787975,2649.6,2649.5,2.65]
[1727137028417,0.37743,2649.6,2649.5,2.65]
[1727137028815,1.48044975,2649.7,2649.5,3.02744]
[1727137029019,1.85785975,2649.8,2649.6,0.4929]
[1727137029321,1.85785975,2649.8,2649.7,3.2078]
[1727137029525,1.48044975,2649.8,2649.7,3.2078]
[1727137029728,1.48044975,2649.8,2649.7,6.23522]
[1727137029932,1.48044975,2650.0,2649.9,0.37739]
[1727137030120,6.51280215,2650.3,2650.0,0.37737]
[1727137030121,1.48044975,2650.1,2650.0,0.37737]
[1727137030316,1.85777975,2650.3,2650.1,0.37736]
[1727137030520,0.37733,2650.3,2650.2,6.8551]
[1727137030933,0.37733,2650.3,2650.2,3.6551]
[1727137031222,1.8568348,2650.3,2650.2,3.6551]
[1727137033022,0.37736,2650.1,2650.0,9.0578]
[1727137034115,0.37736,2650.1,2650.0,5.8578]
[1727137034727,0.37736,2650.1,2650.0,3.2078]
[1727137034728,4.15096,2650.1,2650.0,3.2078]
[1727137034927,12.66262188,2650.1,2649.6,6.8778]
[1727137035228,0.37742,2649.7,2649.6,6.8778]
[1727137035726,1.47933636,2649.8,2649.6,6.8778]
[1727137036028,0.37742,2649.7,2649.6,6.8778]
[1727137036821,0.37744,2649.5,2649.4,2.65]
[1727137038226,1.85677636,2649.5,2649.4,2.65]
[1727137038431,0.37744,2649.5,2649.4,2.65]
[1727137038629,1.85677636,2649.5,2649.4,2.65]
[1727137039028,0.37744,2649.5,2649.4,2.65]
[1727137039229,1.85677636,2649.5,2649.4,2.65]
[1727137043527,2.80039636,2649.5,2649.4,2.65]
[1727137043730,0.37747,2649.3,2649.2,2.65]
[1727137043937,1.85795736,2649.3,2649.2,2.65]
[1727137044134,0.37749,2649.2,2649.0,3.2]
[1727137044337,0.37749,2649.2,2648.3,1.46642307]
[1727137044338,0.94383,2648.9,2648.4,0.4901]
[1727137044631,1.85835702,2648.8,2648.6,2.65]
[1727137044836,0.37756,2648.7,2648.6,2.65]
[1727137045636,1.85835702,2648.8,2648.6,2.65]
[1727137045941,0.37756,2648.7,2648.6,2.65]
[1727137046332,1.48080702,2648.8,2648.6,2.65]
[1727137046636,1.85832702,2649.0,2648.6,3.50486]
[1727137046835,1.85832702,2649.0,2648.9,2.65]
[1727137046836,0.37752,2649.0,2648.9,2.65]
[1727137047034,1.85760731,2649.0,2648.9,2.65]
[1727137050140,1.85760731,2649.0,2648.8,3.2078]
[1727137050141,0.37753,2648.9,2648.8,3.2078]
[1727137050338,2.80131128,2648.9,2648.8,3.2078]
[1727137050536,3.29111128,2648.9,2648.8,3.2078]
[1727137051744,2.34728128,2648.9,2648.8,3.2078]
[1727137053942,3.29111128,2648.9,2648.8,3.2078]
[1727137054140,3.29111128,2648.9,2648.4,6.8574]
[1727137054141,0.37759,2648.6,2648.4,6.8574]
[1727137055563,0.37759,2648.5,2648.4,6.8574]
[1727137055749,0.37761,2648.3,2648.2,3.1505]
[1727137057055,0.37763,2648.2,2648.1,0.5057]
[1727137057251,0.37764,2648.1,2648.0,3.2078]
[1727137057650,1.36453755,2648.1,2648.0,3.2078]
[1727137058257,0.37764,2648.1,2648.0,3.2078]
[1727137064164,0.98689755,2648.3,2648.0,5.8578]
[1727137064464,0.37762,2648.3,2648.0,5.8578]
[1727137064865,0.37762,2648.3,2648.1,0.37764]
[1727137065264,0.37762,2648.3,2648.0,6.23545]
[1727137065456,0.37762,2648.3,2648.1,0.37764]
[1727137066960,2.42375755,2648.6,2648.0,5.8578]
[1727137066961,0.37761,2648.4,2648.0,5.8578]
[1727137067164,0.98689755,2648.6,2648.3,5.8578]
[1727137067371,0.37758,2648.6,2648.5,2.65]
[1727137067765,0.37759,2648.5,2648.4,1.4981]
[1727137069657,6.01278755,2648.8,2648.4,1.4981]
[1727137069872,1.58665128,2648.9,2648.6,5.8578]
[1727137069873,1.09359755,2648.9,2648.6,5.8578]
[1727137070065,1.09359755,2648.9,2648.6,6.23536]
[1727137070066,0.37755,2648.8,2648.6,6.23536]
[1727137070569,0.48424,2648.9,2648.6,6.23536]
[1727137070867,0.48424,2648.9,2648.8,3.02754]
[1727137070868,0.1067,2648.9,2648.8,3.02754]
[1727137071477,0.1067,2648.9,2648.8,6.80274]
[1727137071662,0.37746,2649.4,2649.2,0.37748]
[1727137071863,0.88286,2649.5,2649.3,0.5211]
[1727137072071,0.88286,2649.5,2649.4,5.8578]
[1727137072072,0.37744,2649.5,2649.4,5.8578]
[1727137072377,0.37744,2649.6,2649.4,9.5625]
[1727137072575,0.37744,2649.5,2649.4,9.5625]
[1727137072772,0.37743,2649.6,2649.4,9.5625]
[1727137073274,0.37744,2649.6,2649.4,9.5625]
[1727137073860,5.06889755,2649.8,2649.4,9.5625]
[1727137074071,5.06889755,2649.8,2649.4,6.3625]
[1727137074377,5.06889755,2649.8,2649.4,3.2078]
[1727137074567,0.37744,2649.6,2649.4,3.2078]
[1727137078467,0.98689755,2649.7,2649.4,5.8578]
[1727137078670,0.98689755,2649.7,2649.5,0.4835]
[1727137078870,1.36431755,2649.7,2649.5,0.4835]
[1727137079581,0.98689755,2649.7,2649.6,3.02743]
[1727137079787,0.98689755,2650.0,2649.9,0.37739]
[1727137080087,0.98689755,2650.2,2650.1,0.37736]
[1727137080281,0.37734,2650.3,2650.1,0.37734]
[1727137080467,0.37734,2650.3,2650.0,0.9625]
[1727137080468,0.37733,2650.3,2650.2,3.7148]
[1727137080669,0.98689755,2650.3,2650.0,3.6125]
[1727137080876,0.37736,2650.1,2650.0,3.6125]
[1727137081075,0.37736,2650.1,2650.0,0.9625]
[1727137081573,0.37737,2650.0,2649.9,3.2078]
[1727137081881,0.85187,2650.0,2649.9,3.2078]
[1727137082277,0.37737,2650.0,2649.9,3.2078]
[1727137083076,2.30770755,2650.0,2649.9,3.2078]
[1727137083279,2.30770755,2650.0,2649.6,1.0126]
[1727137083280,0.37742,2649.7,2649.6,1.0126]
[1727137083587,0.37749,2649.2,2649.1,3.2078]
[1727137083773,0.3775,2649.1,2649.0,3.2078]
[1727137083975,0.3775,2649.1,2649.0,0.5606]
[1727137084176,0.37753,2648.9,2648.8,0.558]
[1727137084388,0.37754,2648.8,2648.7,3.2078]
[1727137086188,0.37754,2648.8,2648.3,6.9764]
[1727137086189,1.32141,2648.8,2648.3,6.9764]
[1727137086484,1.32141,2648.8,2648.1,0.71812458]
[1727137086485,1.32171,2648.2,2648.1,0.71812458]
[1727137086690,1.36317982,2648.2,2648.1,0.71812458]
[1727137086887,1.85595474,2648.2,2648.1,0.71812458]
[1727137087292,0.37763,2648.2,2648.1,0.71812458]
[1727137087588,0.37763,2648.2,2648.1,3.36812458]
[1727137087589,0.985465,2648.2,2648.1,3.36812458]
[1727137087886,0.985465,2648.4,2648.1,7.14412458]
[1727137088091,0.37762,2648.3,2648.1,3.36812458]
[1727137088289,0.37763,2648.2,2648.1,3.36812458]
[1727137088485,0.37762,2648.3,2648.1,3.36812458]
[1727137090183,0.37763,2648.2,2648.1,3.36812458]
[1727137090590,0.985465,2648.4,2648.1,7.52176458]
[1727137090793,1.85591474,2648.5,2648.1,7.52176458]
[1727137090794,1.363055,2648.5,2648.3,3.2078]
[1727137090989,1.363055,2648.5,2648.4,3.2331]
[1727137091190,0.37759,2648.5,2648.4,3.7685]
[1727137091893,1.363055,2648.5,2648.4,3.7685]
[1727137092391,1.47832474,2648.7,2648.5,0.37759]
[1727137092392,0.985465,2648.6,2648.5,0.37759]
[1727137092593,1.85581474,2649.2,2648.7,0.37755]
[1727137092789,1.85581474,2649.2,2649.1,2.65]
[1727137092985,0.37749,2649.2,2649.1,2.65]
[1727137093298,0.37751,2649.0,2648.9,5.8578]
[1727137093686,0.37751,2649.0,2648.9,9.0578]
[1727137094384,1.47832474,2649.2,2648.9,9.0578]
[1727137094385,0.37751,2649.1,2648.9,5.8578]
[1727137094786,0.37751,2649.0,2648.9,5.8578]
[1727137095593,0.37751,2649.0,2648.9,3.2078]
[1727137096091,1.3213,2649.0,2648.9,3.2078]
[1727137096286,0.37751,2649.0,2648.9,3.2078]
[1727137097489,0.37757,2648.6,2648.4,4.3263]
[1727137097991,0.37759,2648.5,2648.4,4.3263]
[1727137098303,5.75760936,2649.0,2648.3,2.65]
[1727137098304,0.3776,2648.4,2648.3,2.65]
[1727137099489,0.37759,2648.5,2648.3,2.65]
[1727137099800,0.37759,2648.5,2648.4,0.5686]
[1727137100599,2.91827936,2648.8,2648.4,7.0364]
[1727137100600,1.47832474,2648.8,2648.4,7.0364]
[1727137100790,0.37759,2648.5,2648.4,3.7764]
[1727137103093,4.15359,2648.5,2648.4,3.2078]
[1727137103298,9.776,2648.5,2648.1,3.2078]
[1727137103598,9.776,2648.5,2647.8,3.2078]
[1727137103599,0.94415,2648.0,2647.8,3.2078]
[1727137103994,0.37767,2647.9,2647.8,3.2078]
[1727137105601,0.94408,2648.2,2647.6,3.7382]
[1727137105602,0.3777,2647.7,2647.6,0.5382]
[1727137106502,3.7768,2647.7,2647.2,3.7512]
[1727137106705,0.37776,2647.3,2647.2,1.099]
[1727137108595,4.68612474,2647.7,2646.9,0.71344105]
[1727137108798,0.37779,2647.1,2646.9,0.71344105]
[1727137109102,0.37778,2647.2,2646.9,0.71344105]
[1727137110502,0.37776,2647.3,2646.9,0.71344105]
[1727137110700,0.37778,2647.2,2646.9,0.71344105]
[1727137110901,1.47726,2647.5,2646.9,0.71344105]
[1727137111205,0.37778,2647.2,2646.9,0.71344105]
[1727137111405,3.2078,2647.7,2647.1,3.2078]
[1727137111595,0.94426,2647.7,2647.1,6.4678]
[1727137111799,0.37774,2647.5,2647.2,0.5383]
[1727137112202,2.01882474,2647.9,2647.3,3.2]
[1727137112203,0.37773,2647.6,2647.3,3.2]
[1727137112505,0.37773,2647.6,2647.3,3.7401]
[1727137112899,0.37774,2647.4,2647.3,3.7401]
[1727137114504,1.48472,2647.9,2647.3,3.7401]
[1727137115009,0.37772,2647.6,2647.3,3.7401]
[1727137115207,0.37774,2647.5,2647.3,3.7401]
[1727137115502,0.37774,2647.4,2647.3,3.7401]
[1727137115708,1.32211,2647.4,2647.3,3.2]
[1727137115908,0.37777,2647.2,2647.1,3.2078]
[1727137116410,0.37777,2647.2,2647.1,6.4078]
[1727137117514,0.37777,2647.2,2647.1,3.2078]
[1727137117710,0.5804,2647.3,2647.1,3.2078]
[1727137118016,0.37775,2647.4,2647.1,3.2078]
[1727137118911,3.2078,2647.7,2647.1,6.4678]
[1727137119112,0.37771,2647.7,2647.2,0.37776]
[1727137119311,1.1567,2647.8,2647.3,0.37775]
[1727137119608,0.37771,2647.7,2647.4,0.5637]
[1727137120113,0.37771,2647.7,2647.5,0.5796]
[1727137121216,0.37771,2647.6,2647.5,0.5796]
[1727137121911,0.37774,2647.5,2647.1,3.2078]
[1727137122119,2.10092,2647.8,2647.1,3.7744]
[1727137122322,0.37773,2647.6,2647.1,3.7744]
[1727137122619,0.37773,2647.6,2647.1,4.15218]
[1727137123212,1.1567,2647.8,2647.1,4.15218]
[1727137123617,0.37773,2647.5,2647.1,4.15218]
[1727137123915,2.10095,2647.8,2647.1,3.7744]
[1727137124116,2.10095,2647.8,2647.1,4.15218]
[1727137124117,0.37774,2647.5,2647.1,4.15218]
[1727137126319,0.37774,2647.5,2647.2,2.65]
[1727137126519,2.10095,2647.8,2647.2,2.65]
[1727137126725,0.94426,2647.7,2647.2,2.65]
[1727137126916,0.37775,2647.4,2647.2,2.65]
[1727137127127,0.37776,2647.3,2647.1,3.7744]
[1727137127626,0.37775,2647.4,2647.1,3.7744]
[1727137128220,2.63502474,2647.8,2647.1,3.7744]
[1727137128412,2.65,2647.2,2646.5,3.2078]
[1727137128613,2.65,2647.2,2646.5,3.777]
[1727137128614,0.37786,2646.6,2646.5,3.777]
[1727137128920,0.37786,2646.6,2646.5,3.2078]
[1727137130015,0.37785,2646.7,2646.5,3.2078]
[1727137131021,0.37786,2646.6,2646.5,3.2078]
[1727137134226,0.37786,2646.6,2646.1,0.94712]
[1727137134420,0.37786,2646.6,2646.4,3.2078]
[1727137134825,0.37786,2646.6,2646.4,6.4078]
[1727137136821,1.32256,2646.5,2646.4,6.4078]
[1727137137129,0.37793,2646.1,2646.0,0.5436]
[1727137137326,4.72403,2646.1,2645.6,3.756]
[1727137137521,0.5861,2646.2,2645.6,4.3002]
[1727137137824,0.37795,2646.0,2645.6,4.3002]
[1727137138725,0.37794,2646.1,2645.6,4.3002]
[1727137138928,3.2078,2646.3,2645.6,4.3002]
[1727137139130,0.37794,2646.1,2645.6,4.67819]
[1727137139822,0.37795,2646.0,2645.6,4.67819]
[1727137140323,0.37794,2646.1,2645.7,0.37799]
[1727137140630,1.47832474,2646.6,2646.0,0.37793]
[1727137140931,1.47832474,2646.6,2646.1,0.5332]
[1727137141125,3.7755,2646.7,2646.2,0.5838]
[1727137141126,0.37789,2646.4,2646.2,0.5838]
[1727137141925,0.37788,2646.5,2646.2,0.5838]
[1727137142422,0.37789,2646.4,2646.2,0.5838]
[1727137143024,0.37788,2646.5,2646.2,0.5838]
[1727137143421,0.37791,2646.2,2645.9,3.2078]
[1727137143826,0.37789,2646.4,2645.9,3.2078]
[1727137144026,5.74990936,2646.7,2645.9,3.2078]
[1727137144027,5.25382474,2646.7,2645.9,3.2078]
[1727137144233,5.25382474,2646.7,2646.1,0.37792]
[1727137144234,0.37786,2646.6,2646.1,0.37792]
[1727137144435,0.37786,2646.6,2646.2,0.5542]
[1727137144933,0.37786,2646.6,2646.3,0.5741]
[1727137145327,2.04602474,2646.7,2646.3,0.5741]
[1727137145537,6.20550215,2647.0,2646.3,0.5741]
[1727137145538,4.68612474,2647.0,2646.6,3.2078]
[1727137145727,5.06393474,2647.0,2646.6,3.2078]
[1727137146035,0.548,2647.1,2646.7,3.2]
[1727137146231,0.548,2647.1,2646.8,0.5542]
[1727137146528,0.548,2647.1,2646.8,1.1283]
[1727137146529,0.9258,2647.1,2646.8,1.1283]
[1727137147528,0.92579,2647.1,2646.8,1.1283]
[1727137147726,0.9258,2647.1,2646.8,1.1283]
[1727137147929,0.548,2647.1,2646.8,1.1283]
[1727137148238,0.548,2647.1,2646.9,3.2078]
[1727137148434,0.92579,2647.1,2646.9,3.2078]
[1727137148732,0.3778,2647.0,2646.9,3.2078]
[1727137149433,2.40411474,2647.1,2646.8,0.5741]
[1727137149632,2.40411474,2647.1,2646.8,3.7819]
[1727137149835,1.47832474,2647.1,2646.8,3.7819]
[1727137150032,2.04511725,2647.2,2646.8,3.7819]
[1727137150231,1.47832474,2647.1,2646.8,3.7819]
[1727137151132,1.47832474,2647.2,2646.8,4.15972]
[1727137151344,1.47832474,2647.1,2646.8,3.7819]
[1727137151529,0.3778,2647.0,2646.8,3.7819]
[1727137151733,0.37781,2646.9,2646.8,3.7819]
[1727137151929,1.85613474,2647.0,2646.8,3.7819]
[1727137152227,1.47832474,2646.9,2646.8,3.7819]
[1727137152427,1.97440936,2647.1,2646.8,3.7819]
[1727137152428,1.85612474,2647.0,2646.8,3.7819]
[1727137153028,1.85613474,2646.9,2646.8,3.2078]
[1727137153234,3.54241466,2646.9,2646.8,3.2078]
[1727137153426,3.54241466,2646.9,2646.5,0.5848]
[1727137153427,0.37785,2646.7,2646.5,0.5848]
[1727137153636,1.47870895,2646.7,2646.5,0.5848]
[1727137154332,0.37786,2646.6,2646.5,0.5848]
[1727137155839,1.85655895,2646.7,2646.5,0.5848]
[1727137156033,0.37786,2646.6,2646.5,0.5848]
[1727137156636,1.85655895,2646.7,2646.5,0.5848]
[1727137157137,0.37786,2646.6,2646.5,0.5848]
[1727137157334,1.85655895,2646.7,2646.5,0.5848]
[1727137157640,1.85660024,2646.7,2646.5,0.5848]
[1727137158240,1.47875024,2646.8,2646.5,0.5848]
[1727137158444,1.47875024,2646.8,2646.7,3.58564]
[1727137158633,1.47875024,2647.0,2646.7,3.58564]
[1727137159037,1.66777826,2647.0,2646.7,3.58564]
[1727137159237,1.47875024,2647.0,2646.7,3.58564]
[1727137159445,1.6677732,2647.0,2646.8,0.37783]
[1727137159636,1.47875024,2647.0,2646.8,0.37783]
[1727137159935,1.47875024,2647.1,2646.9,3.2]
[1727137160135,1.6677704,2647.1,2647.0,0.5321]
[1727137160337,1.47930789,2647.1,2647.0,1.0669]
[1727137160732,1.85709789,2647.1,2647.0,1.0669]
[1727137160936,1.47930789,2647.1,2647.0,1.0669]
[1727137161135,1.47930789,2647.1,2647.0,8.4301]
[1727137161433,1.47930789,2647.4,2647.1,0.37779]
[1727137161641,1.47930789,2647.4,2647.0,14.0523]
[1727137161642,1.47930789,2647.4,2647.3,3.2078]
[1727137161837,1.85704789,2647.4,2647.3,3.2078]
[1727137162238,1.47930789,2647.4,2647.3,3.2078]
[1727137162641,1.85704789,2647.4,2647.3,3.2078]
[1727137162843,1.47930789,2647.4,2647.3,3.2078]
[1727137164249,1.85703789,2647.5,2647.3,3.2078]
[1727137164440,1.97166698,2647.6,2647.3,3.2078]
[1727137164441,1.47930789,2647.6,2647.3,3.2078]
[1727137164638,1.85699789,2647.8,2647.4,0.37774]
[1727137164838,1.85699789,2647.8,2647.6,3.2078]
[1727137165243,1.47930789,2647.9,2647.6,3.2078]
[1727137165440,1.85699789,2647.8,2647.6,3.7631]
[1727137165647,1.47930789,2647.8,2647.6,3.7631]
[1727137166348,1.47930789,2647.9,2647.6,3.7631]
[1727137166535,1.47930789,2648.2,2647.7,3.7768]
[1727137166735,1.47930789,2648.3,2648.0,0.37765]
[1727137166947,1.47930789,2648.4,2648.2,3.2078]
[1727137167148,1.47930789,2648.4,2648.3,0.5689]
[1727137167149,1.85690789,2648.4,2648.3,0.5689]
[1727137167346,0.3776,2648.4,2648.3,0.5689]
[1727137167546,1.85690789,2648.4,2648.3,0.5689]
[1727137167741,1.85690789,2648.4,2648.2,6.4078]
[1727137167742,1.47930789,2648.4,2648.2,6.4078]
[1727137167948,1.85691789,2648.4,2648.2,3.2078]
[1727137168246,1.85689789,2648.5,2648.2,3.2078]
[1727137168549,0.3776,2648.4,2648.2,3.2078]
[1727137168848,0.37761,2648.3,2648.2,3.2078]
[1727137169243,4.70951,2648.3,2648.2,3.2078]
[1727137169443,0.93351,2648.3,2648.2,3.2078]
[1727137169643,4.70951,2648.3,2648.2,3.2078]
[1727137174651,5.65355,2648.3,2648.2,3.2078]
[1727137175342,5.09765,2648.3,2648.2,3.2078]
[1727137175551,1.47566464,2649.2,2648.4,0.94401]
[1727137175755,3.2078,2649.8,2649.1,6.4778]
[1727137175950,3.2078,2649.8,2649.1,3.2078]
[1727137175951,0.18886432,2649.7,2649.1,3.2078]
[1727137176254,4.15142,2649.5,2648.8,3.2078]
[1727137176455,0.37746,2649.4,2648.8,3.2078]
[1727137176749,3.2078,2649.1,2648.5,3.2078]
[1727137176953,1.50492,2649.0,2648.5,3.2078]
[1727137177145,0.37753,2648.9,2648.5,3.2078]
[1727137177757,1.50492,2649.0,2648.5,3.2078]
[1727137178453,1.50492,2649.0,2648.7,2.65]
[1727137179160,0.37753,2648.9,2648.7,2.65]
[1727137180058,1.1274,2649.0,2648.7,2.65]
[1727137180252,0.37754,2648.9,2648.7,2.65]